[Event "Djerba Festival Blitz 2025"]
[Site "Djerba"]
[Date "2025.02.21"]
[Round "9.1"]
[White "Maurizzi, Marc`Andria"]
[Black "Oro, Faustino"]
[Result "0-1"]
[Annotator "TA"]
[ECO "D02"]
[WhiteElo "2581"]
[BlackElo "2447"]
[PlyCount "141"]
[EventDate "2025.02.15"]
[EventType "swiss"]
[EventCountry "TUN"]
[SourceTitle "playchess.com"]
[Source "ChessBase"]
[SourceQuality "1"]
[TimeControl "180+3"]

{[%evp 9,141,9,9,0,0,0,0,0,0,0,-2,1,7,0,-5,-5,-2,-18,-8,-18,-8,-23,18,-35,-37,-43,-39,-46,-42,-52,-43,-91,-50,-121,-91,-81,-32,-40,0,-42,-18,-66,-8,-4,-14,-7,0,-27,-8,-18,-28,-96,-69,-89,-14,-30,-44,-49,-8,-153,-39,-43,-22,-34,-11,-232,-216,-187,-229,-198,-29,-85,0,-24,-22,-71,-64,-224,-227,-335,-331,-565,-544,-571,-197,-582,-419,-383,-157,-188,-163,-396,-392,-383,-332,-1241,-738,-705,-639,-1254,-1108,-1436,-1512,-1382,-1269,-1160,-1101,-1022,-1122,-777,-694,-530,0,-402,-395,-404,-404,-671,-404,-416,-416,-409,-402,-394,0,-364,-348,-29984,-29984,-29986,-29981,-29981,-29981,-29978]} 1. Nf3 {[%emt 0:00:03]} Nf6 {[%emt 0:00:03]} 2. d4 {[%emt 0:00:03]} d5 {[%emt 0:00:05]} 3. c3 {[%emt 0:00:13]} e6 {[%emt 0:00:12]} 4. Bf4 {[%emt 0:00:02]} Bd6 {[%emt 0:00:03]} 5. e3 {[%emt 0:00:02]} O-O {[%emt 0:00:05]} 6. Nbd2 {[%emt 0:00:02] D02: 1 d4 d5 2 Nf3 sidelines, including 2...Nf6 3 g3 and 2...Nf6 3 Bf4.} c5 {[%emt 0:00:02]} 7. Bd3 $1 {[%emt 0:00:02]} Bxf4 {[%emt 0:00:08]} 8. exf4 {[%emt 0:00:02] The position is equal.} b6 {[%emt 0:00:01]} 9. O-O {[%emt 0:00:05]} Ba6 {[%emt 0:00:02]} 10. Bxa6 {[%emt 0:00:03]} Nxa6 {[%emt 0:00:02]} 11. Qe2 {[%emt 0:00:02]} Nb8 {[%emt 0:00:03][%cal Ba6b8,Bb8c6,Bc6e7,Be7f5,Bf5d6][%mdl 32]} 12. Ne5 {[%emt 0:00:10]} Qc7 {[%emt 0:00:04]} 13. g3 $146 {[%emt 0:00:12]} (13. Ndf3 Nc6 14. Rad1 cxd4 15. Nxc6 Qxc6 16. Nxd4 Qc7 17. g3 a6 18. Rfe1 {1-0 Grachev,B (2619)-Matlakov,M (2688) EU-Cup Online Play-C rapid 2021 (4.2)}) 13... Nc6 {[%emt 0:00:04]} 14. Rac1 {[%emt 0:00:03]} Rac8 {[%emt 0:00:13]} 15. Qe3 {[%emt 0:00:03]} h6 {[%emt 0:00:02]} 16. Kg2 {[%emt 0:00:05]} (16. dxc5 $11 bxc5 17. Qxc5) 16... Ne7 $15 {[%emt 0:00:03]} 17. Qd3 {[%emt 0:00:03]} Nf5 {[%emt 0:00:03]} 18. g4 {[%emt 0:00:11]} Nd6 {[%emt 0:00:03]} (18... Nh4+ {seems wilder.} 19. Kg3 Ng6 20. Rce1 Nd7) 19. f3 {[%emt 0:00:02]} Nd7 {[%emt 0:00:12]} 20. Qe2 {[%emt 0:00:32]} (20. Rfe1 $15 {was preferable.}) 20... Rfe8 {[%emt 0:00:07]} 21. Nd3 {[%emt 0:00:05]} ({White should play} 21. c4 $15) 21... a5 {[%emt 0:00:15]} 22. h4 {[%emt 0:00:02]} Qc6 {[%emt 0:00:27]} (22... h5 $17) 23. Ne5 {[%emt 0:00:06]} Qc7 {[%emt 0:00:12]} 24. h5 {[%emt 0:00:02]} f6 {[%emt 0:00:05]} 25. dxc5 {[%emt 0:00:24]} (25. Ng6 $11) 25... fxe5 {[%emt 0:01:42]} (25... bxc5 $15 26. Ng6 Nf7) 26. cxd6 $11 {[%emt 0:00:03]} Qxd6 {[%emt 0:00:00]} 27. fxe5 {[%emt 0:00:02]} Nxe5 {[%emt 0:00:00]} 28. Rce1 {[%emt 0:00:07]} Nf7 {[%emt 0:00:00]} 29. f4 {[%emt 0:00:07]} e5 {[%emt 0:00:00]} 30. Qe3 {[%emt 0:00:22]} (30. Qb5 $11) 30... Qd7 $1 $17 {[%emt 0:00:00]} 31. Qg3 {[%emt 0:00:09] [#]} exf4 {[%emt 0:00:00]} (31... d4 $1 $17 {[%cal Rd4c3]} 32. cxd4 exf4 (32... exd4 33. Kh3 $15) (32... Qxd4 33. Rf2 $17) 33. Rxe8+ Rxe8 34. Rxf4 (34. Qxf4 Qd5+ 35. Kg3 Qxa2 $11) 34... Qd5+ 35. Qf3 Qxa2) 32. Qxf4 $11 {[%emt 0:00:05]} Ng5 {[%emt 0:00:21][%cal Od5d4]} 33. Qf5 {[%emt 0:00:22]} Qb5 {[%emt 0:00:00]} 34. Nb3 {[%emt 0:00:11]} (34. a4 $11 Qxb2 (34... Qxa4 35. Nf3 $15) 35. Rxe8+ Rxe8 36. Qxd5+ Kh8 37. Qd7) 34... Rf8 {[%emt 0:00:00] Some like it hot} (34... Rxe1 $17 35. Qxc8+ Re8) 35. Qc2 $15 {[%emt 0:00:06]} Rxf1 {[%emt 0:00:00]} 36. Rxf1 {[%emt 0:00:02]} Qc4 {[%emt 0:00:01]} 37. Qd1 {[%emt 0:00:07]} (37. Qf5 $1 $11 {and White has nothing to worry.}) 37... Qe4+ $19 {[%emt 0:00:03]} 38. Kh2 {[%emt 0:00:06]} Qe5+ {[%emt 0:00:04]} 39. Kg2 {[%emt 0:00:02]} Ne6 $2 {[%emt 0:00:08]} ({Better is} 39... Qe3 $19 40. Qxd5+ Kh8) 40. Qe1 {[%emt 0:00:14]} (40. Nd4 $11 {remains equal.}) 40... Qd6 {[%emt 0:00:04]} (40... Nf4+ $17 41. Kh1 Ne2) 41. Qg3 {[%emt 0:00:04]} Qd7 $36 {[%emt 0:00:01][%mdl 2048] Black is more active.} (41... Qxg3+ {simplifies} 42. Kxg3 a4 43. Nd4 Nxd4 44. cxd4 Rc4) 42. Rf5 {[%emt 0:00:06]} (42. Nd4 $11) 42... d4 {[%emt 0:00:02]} 43. Rf3 {[%emt 0:00:13] White is now going downhill.} (43. Nxd4 $15 Nxd4 44. cxd4) 43... Qd5 {[%emt 0:00:03]} 44. Kh2 {[%emt 0:00:03] [#]} (44. Kg1 $142) 44... dxc3 $1 {[%emt 0:00:05]} (44... Ng5 45. Rf5 Qe6 46. Nxd4 Qxa2 47. Rb5 $17) 45. Rxc3 {[%emt 0:00:04]} (45. Rf5 {is a better defense.} Qc4 46. bxc3) 45... Rf8 {[%emt 0:00:02]} 46. Rd3 {[%emt 0:00:03]} Qc4 {[%emt 0:00:04]} (46... Qe4 {( -> ...Qe2+)} 47. Nd2 Qe2+ 48. Kh1 Nf4) 47. Rd2 {[%emt 0:00:04]} (47. Nd2 {nothing else works.} Qb4 (47... Qxa2 $2 48. Qe5 $19) 48. b3) 47... Ng5 {[%emt 0:00:02]} 48. Rf2 {[%emt 0:00:01] Against Nf3+} Re8 {[%emt 0:00:03]} (48... Rxf2+ $19 {has better winning chances.} 49. Qxf2 Qxg4) 49. Nd2 {[%emt 0:00:03]} Qxa2 {[%emt 0:00:03]} 50. Qf4 $2 {[%emt 0:00:05]} (50. Qc3) 50... Qxb2 {[%emt 0:00:04]} 51. Ne4 {[%emt 0:00:03]} Qe5 {[%emt 0:00:04]} (51... Rxe4 $2 52. Qf8+ (52. Rxb2 $2 {loses.} Rxf4 53. Rxb6 Rxg4 $19) 52... Kh7 53. Rxb2 $18) 52. Nxg5 $2 {[%emt 0:00:02]} (52. Qxe5 Rxe5 53. Nd6) 52... hxg5 {[%emt 0:00:07]} 53. Qxe5 {[%emt 0:00:02]} Rxe5 {[%emt 0:00:00][%mdl 4096] Endgame KR-KR. Black is two pawns up.} 54. Rc2 {[%emt 0:00:02]} b5 {[%emt 0:00:00]} 55. Rc7 {[%emt 0:00:02]} b4 {[%emt 0:00:02]} 56. Rb7 {[%emt 0:00:02]} Re2+ {[%emt 0:00:04]} 57. Kg3 {[%emt 0:00:02]} Re3+ {[%emt 0:00:02]} 58. Kf2 {[%emt 0:00:01]} Ra3 {[%emt 0:00:04]} 59. Ke2 {[%emt 0:00:04]} Rg3 {[%emt 0:00:03][%cal Ob4b3]} 60. Rb5 {[%emt 0:00:02]} Ra3 {[%emt 0:00:05]} (60... Rg1 $19 {Hoping for ...a4.} 61. Kf3 Ra1 62. Rxg5 a4) 61. Kd2 $2 {[%emt 0:00:03][%mdl 8192]} (61. Rb7 $1 $11 b3 62. Kd3) 61... b3 {[%emt 0:00:04]} 62. Rxg5 {[%emt 0:00:06]} a4 {[%emt 0:00:01]} 63. Rb5 {[%emt 0:00:02]} (63. Kc3 $142 Ra2 64. Rb5) 63... Ra2+ {[%emt 0:00:02]} 64. Kc3 {[%emt 0:00:02]} Rg2 {[%emt 0:00:04][%cal Og8h7]} 65. g5 {[%emt 0:00:01]} Rg3+ {[%emt 0:00:04]} 66. Kb2 {[%emt 0:00:02]} Rg2+ {[%emt 0:00:03]} 67. Kc3 $1 {[%emt 0:00:04]} Kh7 {[%emt 0:00:04] ( -> ...a3)} 68. Kd3 $2 {[%emt 0:00:07]} (68. Rb4 $19 b2 (68... Rxg5 $2 69. Rxa4 Rb5 70. Kb2 $17) 69. Rxb2 Rxg5 70. Kb4) 68... b2 {[%emt 0:00:02] Black mates.} 69. h6 {[%emt 0:00:05]} gxh6 {[%emt 0:00:02]} 70. Rb7+ {[%emt 0:00:02]} Kg6 {[%emt 0:00:02]} 71. Kd4 {[%emt 0:00:10] Weighted Error Value: White=0.67/Black=0.49  Loses game:     	White=1     	---        Missed win:     	---       	Black=2      Mistake:       	White=16    	Black=6      Inaccurate:     	White=2     	Black=6      OK:         	White=11    	Black=16     Best:        	White=5     	Black=2      Strong:       	White=2     	Black=2} 0-1

[Event "Djerba Festival Blitz 2025"]
[Site "Djerba"]
[Date "2025.02.21"]
[Round "9.2"]
[White "Dardha, Daniel"]
[Black "Pichon, Ewen"]
[Result "1-0"]
[Annotator "TA"]
[ECO "A17"]
[WhiteElo "2652"]
[BlackElo "2351"]
[PlyCount "39"]
[EventDate "2025.02.15"]
[EventType "swiss"]
[EventCountry "TUN"]
[SourceTitle "playchess.com"]
[Source "ChessBase"]
[SourceQuality "1"]
[TimeControl "180+3"]

{[%evp 9,39,10,18,15,12,0,127,126,146,139,160,160,158,155,160,137,147,145,161,171,191,186,193,176,302,313,290,304,312,224,214,208]} 1. c4 {[%emt 0:00:04]} e6 {[%emt 0:00:03]} 2. Nf3 {[%emt 0:00:03]} d5 {[%emt 0:00:02]} 3. e3 {[%emt 0:00:02]} Nf6 {[%emt 0:00:07]} 4. Nc3 {[%emt 0:00:03]} a6 {[%emt 0:00:24]} 5. b3 {[%emt 0:00:06]} Bd6 {[%emt 0:00:05]} 6. Bb2 {[%emt 0:00:02] A17: English Opening: 1...Nf6 with ...Bb4.} Nbd7 {[%emt 0:00:06]} 7. Qc2 {[%emt 0:00:08] 7.g3 is the modern continuation.} b6 {[%emt 0:00:06]} (7... O-O $11 {remains equal.}) 8. cxd5 $16 {[%emt 0:00:04] White is better.} exd5 {[%emt 0:00:03] [#]} 9. Nxd5 $1 {[%emt 0:00:08][%mdl 512]} Nxd5 {[%emt 0:00:12] [#]} (9... Bb7 10. Nxf6+) 10. Qe4+ $1 {[%emt 0:00:02]} ({And not} 10. Bxg7 Rg8 11. Qe4+ Ne7 12. Qxa8 Rxg7 $11) 10... Kf8 {[%emt 0:00:31] and ...N7f6 should not be overlooked} 11. Qxd5 {[%emt 0:00:03]} Rb8 {[%emt 0:00:01]} 12. Bc4 {[%emt 0:00:27][%csl Gc4][%cal Rd5f7] White is much more active. The black rooks are passive.} Qe7 {[%emt 0:00:03]} 13. O-O $146 {[%emt 0:00:03][%mdl 2048] White is in control.} (13. Qg5 f6 14. Qh5 Bb7 15. Nh4 Qe8 16. Qxe8+ Rxe8 17. O-O Ne5 18. Be2 Be4 19. f3 {1-0 Vignesh,N (2526)-Yuan,Q (2360) Titled Tuesday intern op 06th Aug Early blitz 2024 (9)}) 13... Bb7 {[%emt 0:00:03][%cal Bc8b7,Bb7e4,Be4g6,Bg6h5][%mdl 32]} 14. Qf5 {[%emt 0:00:02]} Be4 {[%emt 0:00:18]} 15. Qg4 {[%emt 0:00:10]} Nf6 {[%emt 0:00:09]} 16. Qh3 {[%emt 0:00:13]} Rg8 {[%emt 0:00:14]} (16... h5 $142 17. Ng5 (17. Bxa6 Ng4 $16) 17... Bg6) 17. Ng5 $18 {[%emt 0:00:13]} (17. Bxa6 b5 18. a4 bxa4 $11) 17... Bg6 {[%emt 0:01:27]} 18. f4 {[%emt 0:00:02][%cal Bf2f4,Bf4f5][%mdl 32] f5! is the strong threat.} h6 {[%emt 0:00:00]} 19. f5 {[%emt 0:00:14]} Bh5 {[%emt 0:00:00]} 20. Bxf6 {[%emt 0:00:05] Black did not feel at home in the position after the opening.   Weighted Error Value: White=0.11 (very precise) /Black=0.25 (precise)   Mistake:       	---       	Black=2      OK:         	White=8     	Black=7      Best:        	White=2     	---        Brilliant:      	White=1     	---} 1-0

[Event "Djerba Festival Blitz 2025"]
[Site "Djerba"]
[Date "2025.02.21"]
[Round "9.3"]
[White "Thorfinnsson, Bjorn"]
[Black "Moussard, Jules"]
[Result "0-1"]
[Annotator "TA"]
[ECO "D03"]
[WhiteElo "2377"]
[BlackElo "2595"]
[PlyCount "83"]
[EventDate "2025.02.15"]
[EventType "swiss"]
[EventCountry "TUN"]
[SourceTitle "playchess.com"]
[Source "ChessBase"]
[SourceQuality "1"]
[TimeControl "180+3"]

{[%evp 9,83,18,16,-1,10,3,24,-3,1,-8,13,0,18,-37,-33,-28,-17,-13,-16,-24,-17,-21,-20,-28,-23,-38,-27,-41,-29,-37,-38,-58,-45,-55,-22,-22,0,0,32,16,14,6,26,0,0,8,35,10,56,25,82,44,58,29,64,69,130,129,106,27,36,-91,-104,-98,-87,-149,-151,-151,-155,-198,-197,-475,-470,-460,-439,-408]} 1. d4 {[%emt 0:00:03]} Nf6 {[%emt 0:00:03]} 2. Nf3 {[%emt 0:00:01]} e6 {[%emt 0:00:01]} 3. Bg5 {[%emt 0:00:02]} d5 {[%emt 0:00:05]} 4. e3 {[%emt 0:00:02]} h6 {[%emt 0:00:03]} 5. Bh4 {[%emt 0:00:02]} c5 {[%emt 0:00:02]} 6. c3 {[%emt 0:00:02] D03: 1 d4 d5 2 Nf3 Nf6 3 Bg5, including Torre Attack with early ...d5.} Nbd7 {[%emt 0:00:02]} 7. Nbd2 {[%emt 0:00:02]} Qc7 {[%emt 0:00:02]} 8. Bd3 {[%emt 0:00:05] White has an edge.} Bd6 {[%emt 0:00:03]} 9. O-O {[%emt 0:00:05]} (9. Qe2 a6 10. a3 b5 11. b4 c4 12. Bc2 Bb7 13. e4 dxe4 14. Nxe4 Nxe4 15. Bxe4 Nb6 16. Nd2 Bd5 17. a4 Bxe4 18. Qxe4 {½-½ Thorfinnsson,B (2353)-Moussard,J (2621) Reykjavik op 2024 (2)}) 9... b6 {[%emt 0:00:10]} 10. Re1 {[%emt 0:00:09]} Bb7 {[%emt 0:00:02]} 11. Bg3 {[%emt 0:00:16]} (11. e4 $11 g5 12. Bg3 Bxg3 13. hxg3) 11... Bxg3 $146 {[%emt 0:00:05]} ({Predecessor:} 11... Ne4 12. dxc5 Nexc5 13. Bxd6 Qxd6 14. Bc2 Nf6 15. Nc4 Qc7 16. Nce5 O-O 17. Rc1 Rfd8 {½-½ Gonzalez Custodio,R (2186)-Picazo Lopez,J (2055) ESP-ch op-A Cala Mendia 2001 (6)}) 12. hxg3 {[%emt 0:00:03]} O-O {[%emt 0:00:03]} 13. Rc1 {[%emt 0:00:02]} e5 {[%emt 0:00:04] ...e4 would now be deadly.} 14. dxe5 {[%emt 0:00:06]} Nxe5 {[%emt 0:00:02]} 15. Nxe5 {[%emt 0:00:03]} Qxe5 {[%emt 0:00:02]} 16. Nf3 {[%emt 0:00:04]} Qe7 {[%emt 0:00:02]} 17. Bb1 {[%emt 0:00:03]} Rfe8 {[%emt 0:00:05]} 18. Qa4 {[%emt 0:00:09]} Ne4 {[%emt 0:00:14]} 19. Rcd1 {[%emt 0:00:05]} Qf6 {[%emt 0:00:06]} 20. Qd7 {[%emt 0:00:16]} Bc6 {[%emt 0:00:14]} 21. Qg4 {[%emt 0:00:03]} Nd6 {[%emt 0:00:18]} 22. Qf4 {[%emt 0:00:06]} Qxf4 {[%emt 0:00:06]} (22... Qe7 {looks sharper.} 23. Nh4 Rad8 24. Nf5 Nxf5 25. Bxf5 h5) 23. gxf4 {[%emt 0:00:04]} Nc4 {[%emt 0:00:20]} 24. Re2 {[%emt 0:00:21]} Rad8 {[%emt 0:00:02]} 25. b3 {[%emt 0:00:14]} Nd6 {[%emt 0:00:04]} 26. Red2 {[%emt 0:00:06][%cal Oc3c4]} Nb5 {[%emt 0:00:07]} 27. Rc1 {[%emt 0:00:21]} f6 {[%emt 0:00:32]} 28. Bd3 {[%emt 0:00:27]} Nc7 {[%emt 0:00:12]} (28... g5 $11) 29. Rcd1 {[%emt 0:00:04]} a5 {[%emt 0:00:08]} (29... g5 $11 {keeps the balance.}) 30. Bg6 {[%emt 0:00:16]} Re7 {[%emt 0:00:03] [#]} 31. e4 $1 {[%emt 0:00:14]} b5 {[%emt 0:00:57]} (31... Red7 32. Bf5) 32. Nh4 {[%emt 0:00:05]} b4 {[%emt 0:00:04]} (32... Red7 $14) 33. cxb4 $16 {[%emt 0:00:03]} axb4 {[%emt 0:00:02]} 34. Nf5 {[%emt 0:00:02]} (34. Rc1 $16) 34... Red7 $11 {[%emt 0:00:01]} 35. exd5 {[%emt 0:00:05]} (35. e5 $14 {is the one way to stay ahead.}) 35... Nxd5 $17 {[%emt 0:00:02]} 36. g3 {[%emt 0:00:15] [#]} Kf8 $1 {[%emt 0:00:02]} (36... Nc3 37. Rxd7 Rxd7 38. Re1 $16) 37. Ne3 {[%emt 0:00:24]} (37. Re1 $142) 37... Nc3 $1 {[%emt 0:00:06][%csl LRd1,LRd2]} (37... Nxe3 38. Rxd7 Rxd7 39. Rxd7 Bxd7 40. fxe3) 38. Rxd7 {[%emt 0:00:03]} Rxd7 {[%emt 0:00:02]} 39. Rxd7 {[%emt 0:00:03]} Bxd7 {[%emt 0:00:01]} 40. Bf5 $2 {[%emt 0:00:04]} (40. Kf1) 40... Bxf5 $19 {[%emt 0:00:06]} 41. Nxf5 {[%emt 0:00:02]} Nxa2 {[%emt 0:00:02]} 42. Nd6 {[%emt 0:00:07] Weighted Error Value: White=0.31/Black=0.12 (very precise)   Mistake:       	White=5     	Black=3      Inaccurate:     	White=4     	Black=4      OK:         	White=9     	Black=10     Best:        	---       	Black=3      Strong:       	---       	Black=1} 0-1

[Event "Djerba Festival Blitz 2025"]
[Site "Djerba"]
[Date "2025.02.21"]
[Round "9.4"]
[White "Maghsoodloo, Parham"]
[Black "Willems, Niels"]
[Result "1-0"]
[Annotator "TA"]
[ECO "A30"]
[WhiteElo "2680"]
[BlackElo "2414"]
[PlyCount "67"]
[EventDate "2025.02.15"]
[EventType "swiss"]
[EventCountry "TUN"]
[SourceTitle "playchess.com"]
[Source "ChessBase"]
[SourceQuality "1"]
[TimeControl "180+3"]

{[%evp 10,67,4,-44,-44,-51,-40,-23,-19,-68,-60,-69,-61,-73,-73,-76,-74,-83,-85,-87,-66,-72,-65,-62,-31,-59,-50,-59,-70,-55,4,0,0,0,0,-30,60,58,168,154,168,162,305,148,436,437,554,568,798,724,2253,2225,2124,2033,2381,2299,3082,2873,29994,29995]} 1. c4 {[%emt 0:00:04]} Nf6 {[%emt 0:00:05]} 2. b3 {[%emt 0:00:05]} c5 {[%emt 0:00:03]} 3. Bb2 {[%emt 0:00:03]} Nc6 {[%emt 0:00:05]} 4. Nf3 {[%emt 0:00:04]} d5 {[%emt 0:00:10]} 5. cxd5 {[%emt 0:00:06]} Nxd5 {[%emt 0:00:02]} 6. g3 {[%emt 0:00:22]} (6. Nc3 $11) 6... f6 $15 {[%emt 0:02:56] A30: Symmetrical English: Double Fianchetto and Hedgehog.} 7. Bg2 {[%emt 0:00:16]} e5 {[%emt 0:00:00]} 8. O-O {[%emt 0:00:04]} Be6 {[%emt 0:00:00] Black has an edge.} 9. a3 $5 {[%emt 0:00:23][%mdl 4] Exploring less charted territory.} (9. e3 $11 {was preferable.}) 9... Be7 {[%emt 0:00:00]} 10. e3 {[%emt 0:00:07]} O-O {[%emt 0:00:00]} 11. Qc2 {[%emt 0:00:04]} Rc8 {[%emt 0:00:00]} 12. d3 {[%emt 0:00:03]} Qd7 {[%emt 0:00:00]} 13. Nbd2 {[%emt 0:00:03]} Rfd8 {[%emt 0:00:00]} 14. Rfd1 {[%emt 0:00:03]} b6 {[%emt 0:00:00]} 15. Rac1 {[%emt 0:00:02]} Bf8 $146 {[%emt 0:00:00]} ({Predecessor:} 15... Bh3 16. Qc4 Bxg2 17. Kxg2 Kh8 18. h4 Na5 19. Qe4 Bf8 20. g4 Qf7 21. h5 Nc7 {1-0 Deac,B (2639)-Rodchenkov,V (2330) Titled Tuesday intern op 21st Sept blitz 2021 (1)}) 16. Qb1 {[%emt 0:00:03]} Nde7 {[%emt 0:00:00]} 17. Bf1 {[%emt 0:00:27][%cal Ob3b4]} Bf5 {[%emt 0:00:00][%cal Rf5d3]} 18. Ne4 {[%emt 0:00:05]} Bg4 {[%emt 0:00:00]} 19. Be2 {[%emt 0:00:03][%cal Ob3b4]} Be6 {[%emt 0:00:00] [#]} (19... Ng6 $15) 20. b4 $1 {[%emt 0:00:37]} cxb4 {[%emt 0:00:02]} 21. axb4 {[%emt 0:00:02]} Nxb4 {[%emt 0:00:17]} 22. Bxe5 {[%emt 0:00:03]} Na2 {[%emt 0:00:02]} (22... Ned5 $11 23. Bd4 Kh8) 23. Rxc8 $14 {[%emt 0:00:08]} Rxc8 {[%emt 0:00:01] [#]} ({Black should play} 23... Qxc8 $14 24. Bd4 h6) 24. Bxf6 $1 $18 {[%emt 0:00:05][%mdl 512]} Bd5 {[%emt 0:00:23]} (24... Qa4 25. Bb2) 25. Ba1 {[%emt 0:00:09]} Nc6 {[%emt 0:00:07]} (25... Qa4 $142 26. Bb2 Rc7) 26. d4 {[%emt 0:00:25]} (26. Neg5 $18) 26... Ncb4 $2 {[%emt 0:00:04][%mdl 8192] This move loses the game for Black.} (26... Qf5 $16) 27. Neg5 {[%emt 0:00:07][%csl Gg5][%cal Rb1h7]} g6 {[%emt 0:00:03]} 28. e4 {[%emt 0:00:04]} Bc4 {[%emt 0:00:03]} 29. Ne5 {[%emt 0:00:04]} Qe7 {[%emt 0:00:03]} 30. Bxc4+ {[%emt 0:00:05]} Rxc4 {[%emt 0:00:02]} 31. Qb3 {[%emt 0:00:05]} b5 {[%emt 0:00:05]} 32. Nxc4 {[%emt 0:00:03]} bxc4 {[%emt 0:00:03]} 33. Qxc4+ {[%emt 0:00:03]} Kh8 {[%emt 0:00:01]} 34. d5+ {[%emt 0:00:02] Weighted Error Value: White=0.15 (very precise) /Black=1.36  Loses game:     	---       	Black=1      Mistake:       	White=2     	Black=4      Inaccurate:     	White=2     	Black=3      OK:         	White=4     	Black=6      Best:        	White=3     	Black=1      Brilliant:      	White=1     	---} 1-0

[Event "Djerba Festival Blitz 2025"]
[Site "Djerba"]
[Date "2025.02.21"]
[Round "9.5"]
[White "Edouard, Romain"]
[Black "Viers, Emmanuel"]
[Result "1-0"]
[Annotator "TA"]
[ECO "A05"]
[WhiteElo "2544"]
[BlackElo "2072"]
[PlyCount "45"]
[EventDate "2025.02.15"]
[EventType "swiss"]
[EventCountry "TUN"]
[SourceTitle "playchess.com"]
[Source "ChessBase"]
[SourceQuality "1"]
[TimeControl "180+3"]

{[%evp 11,45,18,19,20,20,30,41,-35,129,146,156,164,171,170,185,174,196,109,105,97,80,84,138,134,122,125,162,112,198,112,240,233,695,671,744,737]} 1. Nf3 {[%emt 0:00:03]} Nf6 {[%emt 0:00:04]} 2. g3 {[%emt 0:00:02]} b6 {[%emt 0:00:02]} 3. Bg2 {[%emt 0:00:02]} Bb7 {[%emt 0:00:02]} 4. d3 {[%emt 0:00:02]} g6 {[%emt 0:00:10]} 5. e4 {[%emt 0:00:03]} d6 {[%emt 0:00:05]} 6. O-O {[%emt 0:00:03]} Bg7 {[%emt 0:00:02]} 7. Nh4 {[%emt 0:00:03][%cal Oe4e5] e5! would now be deadly. A05: Réti Opening: 1 Nf3 Nf6.} e5 {[%emt 0:00:14] is the legacy move (7...Nfd7).} 8. f4 {[%emt 0:00:09]} exf4 {[%emt 0:00:02]} 9. gxf4 $146 {[%emt 0:00:09] [#]} (9. e5 $14 Nd5 10. c4) ({Predecessor:} 9. e5 Nd5 10. c4 Ne3 11. Bxe3 Bxg2 12. Nxg2 fxe3 13. Qf3 O-O 14. Qxa8 Bxe5 15. Nc3 {1-0 Valmana Canto,J (2401)-Diaz Benitez,R (2001) Lanzarote op 2019 (4)}) 9... Nxe4 $2 {[%emt 0:00:43]} 10. Qe1 $16 {[%emt 0:00:02]} O-O {[%emt 0:00:30]} 11. dxe4 {[%emt 0:00:02]} Re8 {[%emt 0:00:03]} 12. Nc3 {[%emt 0:00:07]} Nd7 {[%emt 0:00:03]} 13. Nf3 {[%emt 0:00:35] Prevents Bd4+} f5 {[%emt 0:00:08] [#]} 14. e5 {[%emt 0:00:28]} dxe5 {[%emt 0:00:02]} 15. fxe5 {[%emt 0:00:02]} Nxe5 {[%emt 0:00:22]} 16. Qg3 {[%emt 0:00:02]} Ng4 {[%emt 0:00:21]} (16... Bxf3 $142 17. Bxf3 Nxf3+ 18. Qxf3 (18. Rxf3 Bd4+ 19. Kg2 Bxc3 $16) 18... Qd4+ 19. Kh1 Qc4) 17. Bg5 {[%emt 0:00:16]} Qd7 {[%emt 0:00:15]} 18. Rad1 {[%emt 0:00:02][%cal Ba1d1,Bd1d7,Bd7c7][%mdl 32]} Qc6 {[%emt 0:00:05]} 19. Kh1 {[%emt 0:00:22]} (19. Nd4 $18 Qxg2+ 20. Qxg2 Bxg2 21. Kxg2) 19... Bxc3 {[%emt 0:00:28] [#]} (19... Qc5 $16) 20. bxc3 {[%emt 0:00:15]} ({White should try} 20. Nh4 $1 $18 Bf6 (20... Be5 $2 21. Qb3+ Kh8 22. Bxc6 $18) 21. Bxf6 (21. Bxc6 Bxc6+ 22. Kg1 Bxg5 $18) 21... Qxf6 22. Bxb7) 20... Qxc3 {[%emt 0:00:02] [#]} (20... Ne3 $16 {was called for.}) 21. Rd7 $1 $18 {[%emt 0:00:06]} Re2 $2 {[%emt 0:00:07]} (21... Bc6 22. Rxc7 (22. Qxc7 Rac8 $14) 22... Rac8) 22. Rxc7 {[%emt 0:00:10]} Rxg2 {[%emt 0:00:16]} 23. Kxg2 {[%emt 0:00:20] Weighted Error Value: White=0.21 (precise) /Black=0.79  Mistake:       	White=4     	Black=5      OK:         	White=6     	Black=5      Best:        	White=2     	Black=1      Strong:       	White=1     	---} 1-0